fUSD/lending_fUSD_20250123
["ID","MTS","AMOUNT","RATE_DAILY","PERIOD"]
[350047576,1737591045125,-500.0,0.00019999,2]
[350047577,1737591045134,-500.0,0.00019999,2]
[350047578,1737591045144,-500.0,0.00019999,2]
[350047579,1737591045154,-500.0,0.00019999,2]
[350047580,1737591045163,-513.89,0.00019999,2]
[350047581,1737591045173,-500.0,0.00019999,2]
[350047582,1737591045183,-500.0,0.00019999,2]
[350047583,1737591045192,-500.0,0.00019999,2]
[350047584,1737591045201,-500.0,0.00019999,2]
[350047585,1737591045216,-500.0,0.00019999,2]
[350047586,1737591045226,-621.9,0.00019999,2]
[350047587,1737591045235,-831.3,0.00019999,2]
[350047588,1737591045246,-536.38,0.00019999,2]
[350047589,1737591045257,-500.0,0.00019999,2]
[350047590,1737591045267,-1830.75,0.00019999,2]
[350047591,1737591045276,-500.0,0.00019999,2]
[350047592,1737591045287,-595.8,0.00019999,2]
[350047593,1737591045303,-780.93,0.00019999,2]
[350047594,1737591045313,-500.0,0.00019999,2]
[350047595,1737591045322,-500.0,0.00019999,2]
[350047596,1737591045332,-1481.14,0.00019999,2]
[350047597,1737591045342,-1162.04,0.00019999,2]
[350047598,1737591045352,-500.0,0.00019999,2]
[350047599,1737591045362,-500.0,0.00019999,2]
[350047600,1737591045372,-500.0,0.00019999,2]
[350047601,1737591045381,-602.3,0.00019999,2]
[350047602,1737591045391,-702.76,0.00019999,2]
[350047603,1737591045401,-1938.91,0.00019999,2]
[350047604,1737591045411,-558.33,0.00019999,2]
[350047605,1737591045420,-821.69,0.00019999,2]
[350047606,1737591045430,-500.0,0.00019999,2]
[350047607,1737591045440,-500.0,0.00019999,2]
[350047608,1737591045452,-500.0,0.00019999,2]
[350047609,1737591045463,-992.68,0.00019999,2]
[350047610,1737591045474,-1088.37,0.00019999,2]
[350047611,1737591045484,-500.0,0.00019999,2]
[350047612,1737591045496,-500.0,0.00019999,2]
[350047613,1737591045506,-500.0,0.00019999,2]
[350047614,1737591045516,-500.0,0.00019999,2]
[350047615,1737591045525,-1000.0,0.00019999,2]
[350047616,1737591045535,-803.41,0.00019999,2]
[350047617,1737591045546,-500.0,0.00019999,2]
[350047618,1737591045555,-2052.56,0.00019999,2]
[350047619,1737591045565,-500.0,0.00019999,2]
[350047620,1737591045580,-705.22,0.00019999,2]
[350047621,1737591045590,-500.0,0.00019999,2]
[350047622,1737591045600,-500.0,0.00019999,2]
[350047623,1737591045609,-1280.22,0.00019999,2]
[350047624,1737591045618,-1334.51,0.00019999,2]
[350047625,1737591045628,-500.0,0.00019999,2]
[350047626,1737591045638,-500.0,0.00019999,2]
[350047627,1737591045647,-500.0,0.00019999,2]
[350047628,1737591045656,-500.0,0.00019999,2]
[350047629,1737591045666,-787.07,0.00019999,2]
[350047630,1737591045676,-500.0,0.00019999,2]
[350047631,1737591045685,-500.0,0.00019999,2]
[350047632,1737591045695,-500.0,0.00019999,2]
[350047633,1737591045705,-500.0,0.00019999,2]
[350047634,1737591045718,-538.87,0.00019999,2]
[350047635,1737591045728,-983.87,0.00019999,2]
[350047636,1737591045738,-779.51,0.00019999,2]
[350047637,1737591045748,-500.0,0.00019999,2]
[350047638,1737591045758,-500.0,0.00019999,2]
[350047639,1737591045767,-751.59,0.00019999,2]
[350047640,1737591045777,-623.94,0.00019999,2]
[350047641,1737591045787,-500.0,0.00019999,2]
[350047642,1737591045798,-1702.69,0.00019999,2]
[350047643,1737591045807,-500.0,0.0002,2]
[350047644,1737591045816,-500.0,0.0002,2]
[350047645,1737591045826,-500.0,0.0002,2]
[350047646,1737591045835,-500.0,0.0002,2]
[350047647,1737591045845,-500.0,0.0002,2]
[350047648,1737591045855,-500.0,0.0002,2]
[350047649,1737591045864,-500.0,0.0002,2]
[350047650,1737591045874,-500.0,0.0002,2]
[350047651,1737591045884,-500.0,0.0002,2]
[350047652,1737591045893,-500.0,0.0002,2]
[350047653,1737591045903,-500.0,0.0002,2]
[350047654,1737591045912,-500.0,0.0002,2]
[350047655,1737591045922,-500.0,0.0002,2]
[350047656,1737591045931,-500.0,0.0002,2]
[350047657,1737591045941,-500.0,0.0002,2]
[350047658,1737591045950,-500.0,0.0002,2]
[350047659,1737591045960,-500.0,0.0002,2]
[350047660,1737591045969,-500.0,0.0002,2]
[350047661,1737591045979,-500.0,0.0002,2]
[350047662,1737591045991,-500.0,0.0002,2]
[350047663,1737591046001,-500.0,0.0002,2]
[350047664,1737591046011,-500.0,0.0002,2]
[350047665,1737591046021,-500.0,0.0002,2]
[350047666,1737591046032,-500.0,0.0002,2]
[350047667,1737591046042,-500.0,0.0002,2]
[350047668,1737591046052,-500.0,0.0002,2]
[350047669,1737591046064,-500.0,0.0002,2]
[350047670,1737591046074,-500.0,0.0002,2]
[350047671,1737591046084,-500.0,0.0002,2]
[350047672,1737591046094,-496.922814,0.0002,2]
[350047673,1737591046105,-602.12,0.0002,2]
[350047674,1737591046114,-500.0,0.0002,2]
[350047675,1737591046124,-500.0,0.0002,2]
[350047676,1737591046134,-500.0,0.0002,2]
[350047677,1737591046144,-1015.47,0.0002,2]
[350047678,1737591046155,-372.406306,0.0002,2]
[350047680,1737591046166,-500.0,0.0002,2]
[350047682,1737591046176,-731.15,0.0002,2]
[350047684,1737591046186,-500.0,0.0002,2]
[350047686,1737591046195,-943.79,0.0002,2]
[350047687,1737591046205,-1579.63,0.0002,2]
[350047688,1737591046217,-596.8,0.0002,2]
[350047689,1737591046227,-754.74,0.0002,2]
[350047690,1737591046237,-1105.85,0.0002,2]
[350047691,1737591046247,-818.16,0.0002,2]
[350047692,1737591046256,-500.0,0.0002,2]
[350047693,1737591046267,-1177.85,0.0002,2]
[350047694,1737591046279,-511.97,0.0002,2]
[350047695,1737591046288,-500.0,0.0002,2]
[350047696,1737591046300,-569.82,0.0002,2]
[350047697,1737591046313,-500.0,0.0002,2]
[350047698,1737591046323,-500.0,0.0002,2]
[350047699,1737591046336,-500.0,0.0002,2]
[350047700,1737591046345,-500.0,0.0002,2]
[350047701,1737591046354,-500.0,0.0002,2]
[350047702,1737591046364,-885.08,0.0002,2]
[350047703,1737591046374,-500.0,0.0002,2]
[350047704,1737591046385,-627.3,0.0002,2]
[350047705,1737591046395,-1225.4,0.0002,2]
[350047706,1737591046587,-500.0,0.0002,2]
[350047707,1737591046606,-731.54,0.0002,2]
[350047708,1737591046616,-500.0,0.0002,2]
[350047709,1737591046625,-500.0,0.0002,2]
[350047710,1737591046635,-500.0,0.0002,2]
[350047711,1737591046645,-500.0,0.0002,2]
[350047712,1737591046655,-500.0,0.0002,2]
[350047713,1737591046665,-963.99,0.0002,2]
[350047714,1737591046674,-870.15,0.0002,2]
[350047715,1737591046685,-869.43,0.0002,2]
[350047716,1737591046695,-930.3,0.0002,2]
[350047717,1737591046705,-500.0,0.0002,2]
[350047718,1737591046715,-28527.06093591,0.00020019,2]
[350047719,1737591046725,-1000.0,0.00020021,2]
[350047720,1737591046737,-1500.0,0.00020073,2]
[350047721,1737591046746,-1000.0,0.00020126,2]
[350047722,1737591046756,-3686.6122087,0.00020201,2]
[350047723,1737591046766,-272.38884505,0.00020272,2]
[350047724,1737591046775,-500.0,0.00020273,2]
[350047725,1737591046785,-500.0,0.00020273,2]
[350047726,1737591046795,-500.0,0.00020273,2]
[350047727,1737591046806,-500.0,0.00020273,2]
[350047728,1737591046816,-500.0,0.00020273,2]
[350047729,1737591046826,-500.0,0.00020273,2]
[350047730,1737591046835,-500.0,0.00020273,2]
[350047731,1737591046845,-500.0,0.00020273,2]
[350047732,1737591046855,-500.0,0.00020273,2]
[350047733,1737591046864,-500.0,0.00020273,2]
[350047734,1737591046874,-500.0,0.00020273,2]
[350047735,1737591046883,-500.0,0.00020273,2]
[350047736,1737591046894,-500.0,0.00020273,2]
[350047737,1737591046904,-500.0,0.00020273,2]
[350047738,1737591046915,-500.0,0.00020273,2]
[350047739,1737591046925,-500.0,0.00020273,2]
[350047740,1737591046936,-500.0,0.00020273,2]
[350047741,1737591046945,-500.0,0.00020273,2]
[350047742,1737591046955,-223.73813255,0.00020273,2]
[350047743,1737591046964,-500.0,0.00020273,2]
[350047744,1737591046974,-642.83054993,0.00020273,2]
[350047745,1737591046984,-500.0,0.00020273,2]
[350047746,1737591046997,-500.0,0.00020273,2]
[350047747,1737591047006,-500.0,0.00020273,2]
[350047748,1737591047016,-500.0,0.00020273,2]
[350047749,1737591047026,-500.0,0.00020273,2]
[350047750,1737591047036,-500.0,0.00020273,2]
[350047751,1737591047046,-500.0,0.00020273,2]
[350047752,1737591047056,-500.0,0.00020273,2]
[350047753,1737591047066,-185.79601408,0.00020273,2]
[350047754,1737591047075,-500.0,0.00020273,2]
[350047755,1737591047084,-500.0,0.00020273,2]
[350047756,1737591047094,-500.0,0.00020273,2]
[350047757,1737591047103,-500.0,0.00020273,2]
[350047758,1737591047113,-500.0,0.00020273,2]
[350047759,1737591047123,-500.0,0.00020273,2]
[350047760,1737591047133,-500.0,0.00020273,2]
[350047761,1737591047142,-500.0,0.00020273,2]
[350047762,1737591047151,-500.0,0.00020273,2]
[350047763,1737591047161,-500.0,0.00020273,2]
[350047764,1737591047170,-500.0,0.00020273,2]
[350047765,1737591047180,-500.0,0.00020273,2]
[350047766,1737591047190,-500.0,0.00020273,2]
[350047767,1737591047199,-500.0,0.00020273,2]
[350047768,1737591047212,-500.0,0.00020273,2]
[350047769,1737591047221,-500.0,0.00020273,2]
[350047770,1737591047231,-500.0,0.00020273,2]
[350047771,1737591047241,-500.0,0.00020273,2]
[350047772,1737591047251,-500.0,0.00020273,2]
[350047773,1737591047261,-500.0,0.00020273,2]
[350047774,1737591047270,-513.89,0.00020273,2]
[350047775,1737591047280,-500.0,0.00020273,2]
[350047776,1737591047291,-500.0,0.00020273,2]
[350047777,1737591047300,-500.0,0.00020273,2]
[350047778,1737591047309,-500.0,0.00020273,2]
[350047779,1737591047319,-500.0,0.00020273,2]
[350047780,1737591047328,-500.0,0.00020273,2]
[350047781,1737591047337,-831.3,0.00020273,2]
[350047782,1737591047347,-621.9,0.00020273,2]
[350047783,1737591047357,-500.0,0.00020273,2]
[350047784,1737591047367,-536.38,0.00020273,2]
[350047785,1737591047376,-496.922814,0.00020273,2]
[350047786,1737591047386,-602.12,0.00020273,2]
[350047787,1737591047395,-500.0,0.00020273,2]
[350047788,1737591047404,-1830.75,0.00020273,2]
[350047789,1737591047414,-500.0,0.00020273,2]
[350047790,1737591047424,-500.0,0.00020273,2]
[350047791,1737591047433,-500.0,0.00020273,2]
[350047792,1737591047443,-595.8,0.00020273,2]
[350047793,1737591047453,-780.93,0.00020273,2]
[350047794,1737591047462,-500.0,0.00020273,2]
[350047795,1737591047472,-500.0,0.00020273,2]
[350047796,1737591047481,-198.48611287,0.00020273,2]
[350047797,1737591047492,-1481.14,0.00020273,2]
[350047798,1737591047502,-1015.47,0.00020273,2]
[350047799,1737591047511,-1162.04,0.00020273,2]
[350047800,1737591047521,-372.406306,0.00020273,2]
[350047801,1737591047532,-500.0,0.00020273,2]
[350047802,1737591047543,-500.0,0.00020273,2]
[350047803,1737591047552,-500.0,0.00020273,2]
[350047804,1737591047562,-731.15,0.00020273,2]
[350047805,1737591047572,-500.0,0.00020273,2]
[350047806,1737591047581,-602.3,0.00020273,2]
[350047807,1737591047591,-702.76,0.00020273,2]
[350047808,1737591047600,-500.0,0.00020273,2]
[350047809,1737591047610,-1938.91,0.00020273,2]
[350047810,1737591047620,-558.33,0.00020273,2]
[350047811,1737591047629,-821.69,0.00020273,2]
[350047812,1737591047639,-943.79,0.00020273,2]
[350047813,1737591047648,-500.0,0.00020273,2]
[350047814,1737591047657,-500.0,0.00020273,2]
[350047815,1737591047666,-500.0,0.00020273,2]
[350047816,1737591047675,-992.68,0.00020273,2]
[350047817,1737591047685,-1579.63,0.00020273,2]
[350047818,1737591047694,-596.8,0.00020273,2]
[350047819,1737591047704,-754.74,0.00020273,2]
[350047820,1737591047713,-1088.37,0.00020273,2]
[350047821,1737591047722,-500.0,0.00020273,2]
[350047822,1737591047732,-1105.85,0.00020273,2]
[350047823,1737591047743,-500.0,0.00020273,2]
[350047824,1737591047752,-500.0,0.00020273,2]
[350047825,1737591047761,-500.0,0.00020273,2]
[350047826,1737591047771,-818.16,0.00020273,2]
[350047827,1737591047780,-500.0,0.00020273,2]
[350047828,1737591047789,-1177.85,0.00020273,2]
[350047829,1737591047799,-1000.0,0.00020273,2]
[350047830,1737591047808,-511.97,0.00020273,2]
[350047831,1737591047818,-803.41,0.00020273,2]
[350047832,1737591047827,-500.0,0.00020273,2]
[350047833,1737591047837,-500.0,0.00020273,2]
[350047834,1737591047847,-2052.56,0.00020273,2]
[350047835,1737591047857,-160.38,0.00020273,2]
[350047836,1737591047866,-569.82,0.00020273,2]
[350047837,1737591047876,-500.0,0.00020273,2]
[350047838,1737591047886,-705.22,0.00020273,2]
[350047839,1737591047896,-500.0,0.00020273,2]
[350047840,1737591047906,-500.0,0.00020273,2]
[350047841,1737591047916,-500.0,0.00020273,2]
[350047842,1737591047925,-500.0,0.00020273,2]
[350047843,1737591047935,-500.0,0.00020273,2]
[350047844,1737591047944,-301.24,0.00020273,2]
[350047845,1737591047954,-1280.22,0.00020273,2]
[350047846,1737591047965,-885.08,0.00020273,2]
[350047847,1737591047974,-500.0,0.00020273,2]
[350047848,1737591047985,-627.3,0.00020273,2]
[350047849,1737591047996,-1225.4,0.00020273,2]
[350047850,1737591048005,-1334.51,0.00020273,2]
[350047851,1737591048019,-500.0,0.00020273,2]
[350047852,1737591048040,-500.0,0.00020273,2]
[350047853,1737591048057,-500.0,0.00020273,2]
[350047854,1737591048067,-500.0,0.00020273,2]
[350047855,1737591048076,-500.0,0.00020273,2]
[350047856,1737591048085,-787.07,0.00020273,2]
[350047857,1737591048094,-731.54,0.00020273,2]
[350047858,1737591048103,-500.0,0.00020273,2]
[350047859,1737591048113,-500.0,0.00020273,2]
[350047860,1737591048122,-500.0,0.00020273,2]
[350047861,1737591048132,-500.0,0.00020273,2]
[350047862,1737591048142,-500.0,0.00020273,2]
[350047863,1737591048151,-500.0,0.00020273,2]
[350047864,1737591048161,-500.0,0.00020273,2]
[350047865,1737591048171,-386.11,0.00020273,2]
[350047866,1737591048180,-538.87,0.00020273,2]
[350047867,1737591048190,-500.0,0.00020273,2]
[350047868,1737591048199,-983.87,0.00020273,2]
[350047869,1737591048208,-963.99,0.00020273,2]
[350047870,1737591048220,-779.51,0.00020273,2]
[350047871,1737591048230,-870.15,0.00020273,2]
[350047872,1737591048239,-500.0,0.00020273,2]
[350047873,1737591048248,-500.0,0.00020273,2]
[350047874,1737591048257,-751.59,0.00020273,2]
[350047875,1737591048267,-869.43,0.00020273,2]
[350047876,1737591048276,-500.0,0.00020273,2]
[350047877,1737591048285,-1702.69,0.00020273,2]
[350047878,1737591048296,-930.3,0.00020273,2]
[350047879,1737591048307,-500.0,0.00020273,2]
[350047880,1737591048316,-28527.06093591,0.00020332,2]
[350047881,1737591048326,-1787.0,0.000205,2]
[350047882,1737591048335,-1000.0,0.00020538,2]
[350047883,1737591048344,-500.0,0.00020547,2]
[350047884,1737591048353,-500.0,0.00020547,2]
[350047885,1737591048363,-500.0,0.00020547,2]
[350047886,1737591048372,-500.0,0.00020547,2]
[350047887,1737591048381,-500.0,0.00020547,2]
[350047888,1737591048391,-500.0,0.00020547,2]
[350047889,1737591048400,-500.0,0.00020547,2]
[350047890,1737591048409,-500.0,0.00020547,2]
[350047891,1737591048418,-500.0,0.00020547,2]
[350047892,1737591048428,-500.0,0.00020547,2]
[350047893,1737591048437,-500.0,0.00020547,2]
[350047894,1737591048447,-500.0,0.00020547,2]
[350047895,1737591048457,-500.0,0.00020547,2]
[350047896,1737591048467,-500.0,0.00020547,2]
[350047897,1737591048477,-500.0,0.00020547,2]
[350047898,1737591048489,-500.0,0.00020547,2]
[350047899,1737591048499,-500.0,0.00020547,2]
[350047900,1737591048508,-500.0,0.00020547,2]
[350047901,1737591048517,-500.0,0.00020547,2]
[350047902,1737591048527,-500.0,0.00020547,2]
[350047903,1737591048536,-500.0,0.00020547,2]
[350047904,1737591048545,-500.0,0.00020547,2]
[350047905,1737591048554,-500.0,0.00020547,2]
[350047906,1737591048563,-500.0,0.00020547,2]
[350047907,1737591048572,-500.0,0.00020547,2]
[350047908,1737591048581,-500.0,0.00020547,2]
[350047909,1737591048591,-500.0,0.00020547,2]
[350047910,1737591048600,-500.0,0.00020547,2]
[350047911,1737591048609,-500.0,0.00020547,2]
[350047912,1737591048619,-500.0,0.00020547,2]
[350047913,1737591048627,-500.0,0.00020547,2]
[350047914,1737591048637,-500.0,0.00020547,2]
[350047915,1737591048647,-500.0,0.00020547,2]
[350047916,1737591048656,-500.0,0.00020547,2]
[350047917,1737591048665,-500.0,0.00020547,2]
[350047918,1737591048674,-500.0,0.00020547,2]
[350047919,1737591048684,-500.0,0.00020547,2]
[350047920,1737591048693,-500.0,0.00020547,2]
[350047921,1737591048702,-393.23509614,0.00020547,2]
[350047922,1737591048712,-500.0,0.00020547,2]
[350047923,1737591048722,-398.49477346,0.00020547,2]
[350047924,1737591048731,-288.16,0.00020547,2]
[350047925,1737591048742,-500.0,0.00020547,2]
[350047926,1737591048752,-500.0,0.00020547,2]
[350047927,1737591048761,-500.0,0.00020547,2]
[350047928,1737591048772,-500.0,0.00020547,2]
[350047929,1737591048781,-500.0,0.00020547,2]
[350047930,1737591048791,-513.89,0.00020547,2]
[350047931,1737591048801,-500.0,0.00020547,2]
[350047932,1737591048811,-500.0,0.00020547,2]
[350047933,1737591048821,-500.0,0.00020547,2]
[350047934,1737591048830,-500.0,0.00020547,2]
[350047935,1737591048840,-544.82075532,0.00020547,2]
[350047936,1737591048850,-500.0,0.00020547,2]
[350047937,1737591048860,-831.3,0.00020547,2]
[350047938,1737591048869,-621.9,0.00020547,2]
[350047939,1737591048879,-500.0,0.00020547,2]
[350047940,1737591048889,-536.38,0.00020547,2]
[350047941,1737591048899,-496.922814,0.00020547,2]
[350047942,1737591048909,-602.12,0.00020547,2]
[350047943,1737591048920,-500.0,0.00020547,2]
[350047944,1737591048929,-1830.75,0.00020547,2]
[350047945,1737591048983,-500.0,0.00020547,2]
[350047946,1737591048993,-500.0,0.00020547,2]
[350047947,1737591049003,-500.0,0.00020547,2]
[350047948,1737591049012,-595.8,0.00020547,2]
[350047949,1737591049021,-780.93,0.00020547,2]
[350047950,1737591049031,-500.0,0.00020547,2]
[350047951,1737591049040,-474.06,0.00020547,2]
[350047952,1737591049049,-1481.14,0.00020547,2]
[350047953,1737591049058,-1015.47,0.00020547,2]
[350047954,1737591049067,-1162.04,0.00020547,2]
[350047955,1737591049076,-372.406306,0.00020547,2]
[350047956,1737591049086,-500.0,0.00020547,2]
[350047957,1737591049096,-500.0,0.00020547,2]
[350047958,1737591049105,-500.0,0.00020547,2]
[350047959,1737591049115,-731.15,0.00020547,2]
[350047960,1737591049125,-500.0,0.00020547,2]
[350047961,1737591049134,-602.3,0.00020547,2]
[350047962,1737591049143,-702.76,0.00020547,2]
[350047963,1737591049153,-500.0,0.00020547,2]
[350047964,1737591049161,-1938.91,0.00020547,2]
[350047965,1737591049170,-558.33,0.00020547,2]
[350047966,1737591049179,-821.69,0.00020547,2]
[350047967,1737591049189,-943.79,0.00020547,2]
[350047968,1737591049198,-500.0,0.00020547,2]
[350047969,1737591049212,-500.0,0.00020547,2]
[350047970,1737591049221,-500.0,0.00020547,2]
[350047971,1737591049230,-992.68,0.00020547,2]
[350047972,1737591049240,-1579.63,0.00020547,2]
[350047973,1737591049251,-596.8,0.00020547,2]
[350047974,1737591049261,-754.74,0.00020547,2]
[350047975,1737591049270,-1088.37,0.00020547,2]
[350047976,1737591049279,-500.0,0.00020547,2]
[350047977,1737591049290,-1105.85,0.00020547,2]
[350047978,1737591049299,-500.0,0.00020547,2]
[350047979,1737591049309,-500.0,0.00020547,2]
[350047980,1737591049318,-500.0,0.00020547,2]
[350047981,1737591049327,-818.16,0.00020547,2]
[350047982,1737591049337,-500.0,0.00020547,2]
[350047983,1737591049346,-1177.85,0.00020547,2]
[350047984,1737591049357,-1000.0,0.00020547,2]
[350047985,1737591049366,-511.97,0.00020547,2]
[350047986,1737591049376,-803.41,0.00020547,2]
[350047987,1737591049386,-500.0,0.00020547,2]
[350047988,1737591049396,-500.0,0.00020547,2]
[350047989,1737591049406,-2052.56,0.00020547,2]
[350047990,1737591049415,-569.82,0.00020547,2]
[350047991,1737591049425,-705.22,0.00020547,2]
[350047992,1737591049435,-500.0,0.00020547,2]
[350047993,1737591049445,-500.0,0.00020547,2]
[350047994,1737591049455,-500.0,0.00020547,2]
[350047995,1737591049466,-500.0,0.00020547,2]
[350047996,1737591049475,-500.0,0.00020547,2]
[350047997,1737591049485,-500.0,0.00020547,2]
[350047998,1737591049494,-1280.22,0.00020547,2]
[350047999,1737591049503,-885.08,0.00020547,2]
[350048000,1737591049513,-500.0,0.00020547,2]
[350048001,1737591049521,-627.3,0.00020547,2]
[350048002,1737591049530,-1225.4,0.00020547,2]
[350048003,1737591049539,-1334.51,0.00020547,2]
[350048004,1737591049548,-500.0,0.00020547,2]
[350048005,1737591049557,-500.0,0.00020547,2]
[350048006,1737591049566,-500.0,0.00020547,2]
[350048007,1737591049575,-500.0,0.00020547,2]
[350048008,1737591049584,-500.0,0.00020547,2]
[350048009,1737591049593,-787.07,0.00020547,2]
[350048010,1737591049603,-731.54,0.00020547,2]
[350048011,1737591049611,-500.0,0.00020547,2]
[350048012,1737591049621,-500.0,0.00020547,2]
[350048013,1737591049630,-500.0,0.00020547,2]
[350048014,1737591049639,-500.0,0.00020547,2]
[350048015,1737591049650,-500.0,0.00020547,2]
[350048016,1737591049660,-500.0,0.00020547,2]
[350048017,1737591049669,-500.0,0.00020547,2]
[350048018,1737591049679,-538.87,0.00020547,2]
[350048019,1737591049688,-500.0,0.00020547,2]
[350048020,1737591049698,-983.87,0.00020547,2]
[350048021,1737591049708,-963.99,0.00020547,2]
[350048022,1737591049718,-779.51,0.00020547,2]
[350048023,1737591049727,-870.15,0.00020547,2]
[350048024,1737591049737,-500.0,0.00020547,2]
[350048025,1737591049748,-500.0,0.00020547,2]
[350048026,1737591049758,-751.59,0.00020547,2]
[350048027,1737591049767,-869.43,0.00020547,2]
[350048028,1737591049777,-500.0,0.00020547,2]
[350048029,1737591049788,-1702.69,0.00020547,2]
[350048030,1737591049797,-930.3,0.00020547,2]
[350048031,1737591049807,-500.0,0.00020547,2]
[350048032,1737591049817,-166.77,0.00020553,2]
[350048033,1737591049827,-155.3,0.00020579,2]
[350048034,1737591049836,-1000.0,0.00020642,2]
[350048035,1737591049846,-28527.06093591,0.00020646,2]
[350048036,1737591049855,-500.0,0.0002074,2]
[350048037,1737591049865,-500.0,0.00020821,2]
[350048038,1737591049875,-500.0,0.00020821,2]
[350048039,1737591049885,-500.0,0.00020821,2]
[350048040,1737591049894,-500.0,0.00020821,2]
[350048041,1737591049904,-500.0,0.00020821,2]
[350048042,1737591049913,-439.87639207,0.00020821,2]
[350048043,1737591049923,-377.54984955,0.00020821,2]
[350048044,1737591049933,-500.0,0.00020821,2]
[350048045,1737591049943,-500.0,0.00020821,2]
[350048046,1737591049953,-500.0,0.00020821,2]
[350048047,1737591049962,-500.0,0.00020821,2]
[350048048,1737591049972,-446.07,0.00020821,2]
[350048049,1737591049981,-500.0,0.00020821,2]
[350048050,1737591049990,-500.0,0.00020821,2]
[350048051,1737591049999,-500.0,0.00020821,2]
[350048052,1737591050010,-500.0,0.00020821,2]
[350048053,1737591050019,-500.0,0.00020821,2]
[350048054,1737591050028,-500.0,0.00020821,2]
[350048055,1737591050038,-500.0,0.00020821,2]
[350048056,1737591050048,-500.0,0.00020821,2]
[350048057,1737591050057,-500.0,0.00020821,2]
[350048058,1737591050067,-575.95962761,0.00020821,2]
[350048059,1737591050077,-500.0,0.00020821,2]
[350048060,1737591050086,-500.0,0.00020821,2]
[350048061,1737591050096,-500.0,0.00020821,2]
[350048062,1737591050106,-500.0,0.00020821,2]
[350048063,1737591050115,-500.0,0.00020821,2]
[350048064,1737591050125,-500.0,0.00020821,2]
[350048065,1737591050135,-186.18312213,0.00020821,2]
[350048066,1737591050144,-500.0,0.00020821,2]
[350048067,1737591050154,-500.0,0.00020821,2]
[350048068,1737591050164,-500.0,0.00020821,2]
[350048069,1737591050174,-500.0,0.00020821,2]
[350048070,1737591050184,-500.0,0.00020821,2]
[350048071,1737591050194,-500.0,0.00020821,2]
[350048072,1737591050204,-500.0,0.00020821,2]
[350048073,1737591050219,-500.0,0.00020821,2]
[350048074,1737591050229,-500.0,0.00020821,2]
[350048075,1737591050238,-500.0,0.00020821,2]
[350048076,1737591050247,-500.0,0.00020821,2]
[350048077,1737591050257,-500.0,0.00020821,2]
[350048078,1737591050266,-500.0,0.00020821,2]
[350048079,1737591050275,-215.81,0.00020821,2]